[Event "FINAL CAMPEONATO ABSOLUTO DE AJEDREZ CHILE 2018"]
[Site "CENTRO CULTURAL LO PRADO, Chile"]
[Date "2018.02.25"]
[Round "2.6"]
[White "HENRIQUEZ VILLAGRA, Cristobal"]
[Black "LOPEZ SILVA, Hugo Andres"]
[Result "1-0"]
[TimeControl "90 minutos mas 30 segundos de incremento por movida"]
[WhiteTitle "GM"]
[WhiteElo "2501"]
[BlackElo "2389"]

1. e4 {[%clk 01:30:45]} {[%emt 00:00:14]} e5 {[%clk 01:30:32]} {[%emt
00:00:28]} 2. Nf3 {[%clk 01:31:08]} {[%emt 00:00:07]} Nc6 {[%clk 01:31:00]}
{[%emt 00:00:02]} 3. Bb5 {[%clk 01:31:31]} {[%emt 00:00:07]} g6 {[%clk
01:30:52]} {[%emt 00:00:38]} 4. c3 {[%clk 01:28:47]} {[%emt 00:03:14]} a6
{[%clk 01:31:04]} {[%emt 00:00:19]} 5. Ba4 {[%clk 01:28:48]} {[%emt 00:00:28]}
d6 {[%clk 01:31:28]} {[%emt 00:00:06]} 6. d4 {[%clk 01:22:51]} {[%emt
00:06:27]} Bd7 {[%clk 01:31:52]} {[%emt 00:00:06]} 7. Bg5 {[%clk 01:13:00]}
{[%emt 00:10:20]} Be7 {[%clk 01:20:16]} {[%emt 00:12:06]} 8. Be3 {[%clk
01:07:25]} {[%emt 00:06:05]} Nf6 {[%clk 01:19:43]} {[%emt 00:01:03]} 9. d5
{[%clk 01:06:27]} {[%emt 00:01:28]} Nb8 {[%clk 01:19:48]} {[%emt 00:00:25]} 10.
Bc2 {[%clk 01:05:13]} {[%emt 00:01:44]} c6 {[%clk 01:09:23]} {[%emt 00:10:55]}
11. h3 {[%clk 00:48:03]} {[%emt 00:17:40]} cxd5 {[%clk 01:04:39]} {[%emt
00:05:15]} 12. exd5 {[%clk 00:48:28]} {[%emt 00:00:05]} Qa5 {[%clk 00:38:12]}
{[%emt 00:26:56]} 13. Bb3 {[%clk 00:48:22]} {[%emt 00:00:36]} Bf5 {[%clk
00:38:21]} {[%emt 00:00:21]} 14. O-O {[%clk 00:40:01]} {[%emt 00:08:51]} O-O
{[%clk 00:32:11]} {[%emt 00:06:41]} 15. Na3 {[%clk 00:32:10]} {[%emt 00:08:20]}
b5 {[%clk 00:12:26]} {[%emt 00:20:15]} 16. Nc2 {[%clk 00:23:00]} {[%emt
00:09:39]} Bxc2 {[%clk 00:11:07]} {[%emt 00:01:50]} 17. Qxc2 {[%clk 00:19:06]}
{[%emt 00:04:25]} Nbd7 {[%clk 00:08:46]} {[%emt 00:02:51]} 18. a3 {[%clk
00:18:54]} {[%emt 00:00:42]} Rfe8 {[%clk 00:04:17]} {[%emt 00:04:58]} 19. g4
{[%clk 00:13:23]} {[%emt 00:06:01]} Qc7 {[%clk 00:03:03]} {[%emt 00:01:44]} 20.
Ng5 {[%clk 00:09:57]} {[%emt 00:03:55]} Bf8 {[%clk 00:02:55]} {[%emt 00:00:39]}
21. Rad1 {[%clk 00:04:51]} {[%emt 00:05:36]} Bg7 {[%clk 00:02:12]} {[%emt
00:01:13]} 22. f3 {[%clk 00:04:01]} {[%emt 00:01:19]} Rac8 {[%clk 00:02:24]}
{[%emt 00:00:18]} 23. Ne4 {[%clk 00:03:24]} {[%emt 00:01:08]} Nb6 {[%clk
00:01:36]} {[%emt 00:01:18]} 24. Kg2 {[%clk 00:00:56]} {[%emt 00:02:57]} Nfd7
{[%clk 00:00:58]} {[%emt 00:01:08]} 25. g5 {[%clk 00:01:17]} {[%emt 00:00:09]}
Nc4 {[%clk 00:00:35]} {[%emt 00:00:53]} 26. Bc1 {[%clk 00:00:52]} {[%emt
00:00:55]} f5 {[%clk 00:00:32]} {[%emt 00:00:33]} 27. gxf6 {[%clk 00:01:18]}
{[%emt 00:00:04]} Nxf6 {[%clk 00:01:01]} {[%emt 00:00:01]} 28. Nxf6+ {[%clk
00:00:34]} {[%emt 00:01:14]} Bxf6 {[%clk 00:01:30]} {[%emt 00:00:01]} 29. Kh2
{[%clk 00:00:37]} {[%emt 00:00:27]} Qe7 {[%clk 00:01:30]} {[%emt 00:00:30]} 30.
Rg1 {[%clk 00:00:31]} {[%emt 00:00:36]} e4 {[%clk 00:01:06]} {[%emt 00:00:54]}
31. f4 {[%clk 00:00:38]} {[%emt 00:00:23]} Qd7 {[%clk 00:00:59]} {[%emt
00:00:37]} 32. Qe2 {[%clk 00:00:38]} {[%emt 00:00:31]} Qf5 {[%clk 00:00:45]}
{[%emt 00:00:44]} 33. Rg3 {[%clk 00:00:59]} {[%emt 00:00:09]} Rc5 {[%clk
00:00:40]} {[%emt 00:00:35]} 34. Bc2 {[%clk 00:00:57]} {[%emt 00:00:31]} Rxd5
{[%clk 00:00:31]} {[%emt 00:00:39]} 35. Re1 {[%clk 00:01:20]} {[%emt 00:00:07]}
Bh4 {[%clk 00:00:45]} {[%emt 00:00:16]} 36. b3 {[%clk 00:00:42]} {[%emt
00:01:08]} Bxg3 {[%clk 00:00:33]} {[%emt 00:00:43]} 37. Kxg3 {[%clk 00:01:10]}
{[%emt 00:00:01]} Na5 {[%emt 00:00:33]} 38. c4 {[%clk 00:01:23]} {[%emt
00:00:16]} bxc4 {[%emt 00:00:18]} 39. b4 {[%clk 00:01:53]} Nb3 {[%emt
00:00:43]} 40. Qxc4 {[%emt 00:00:01]} Nd4 {[%emt 00:00:37]} 1-0

[Event "FINAL CAMPEONATO ABSOLUTO DE AJEDREZ CHILE 2018"]
[Site "CENTRO CULTURAL LO PRADO, Chile"]
[Date "2018.02.25"]
[Round "3.2"]
[White "PEREZ GORMAZ, Matias"]
[Black "HENRIQUEZ VILLAGRA, Cristobal"]
[Result "0-1"]
[TimeControl "90 minutos mas 30 segundos de incremento por movida"]
[WhiteTitle "FM"]
[BlackTitle "GM"]
[WhiteElo "2410"]
[BlackElo "2501"]

1. e4 {[%clk 01:30:03]} {[%emt 00:00:55]} c6 {[%clk 01:30:45]} {[%emt
00:00:16]} 2. d4 {[%clk 01:15:13]} {[%emt 00:15:20]} d5 {[%clk 01:30:15]}
{[%emt 00:01:00]} 3. e5 {[%clk 01:13:44]} {[%emt 00:01:59]} Bf5 {[%clk
01:30:36]} {[%emt 00:00:08]} 4. Be3 {[%clk 01:14:08]} {[%emt 00:00:06]} e6
{[%clk 01:29:48]} {[%emt 00:01:18]} 5. Nd2 {[%clk 01:14:21]} {[%emt 00:00:17]}
Nd7 {[%clk 01:29:34]} {[%emt 00:00:44]} 6. Ngf3 {[%clk 01:11:28]} {[%emt
00:03:23]} h6 {[%clk 01:29:17]} {[%emt 00:00:47]} 7. Be2 {[%clk 01:08:38]}
{[%emt 00:03:20]} Ne7 {[%clk 01:28:31]} {[%emt 00:01:16]} 8. O-O {[%clk
01:07:55]} {[%emt 00:01:13]} Bh7 {[%clk 01:19:33]} {[%emt 00:09:29]} 9. Nb3
{[%clk 00:56:21]} {[%emt 00:12:04]} g5 {[%clk 01:00:30]} {[%emt 00:19:32]} 10.
Ne1 {[%clk 00:52:16]} {[%emt 00:04:35]} Nf5 {[%clk 00:59:43]} {[%emt 00:01:17]}
11. Bd2 {[%clk 00:43:12]} {[%emt 00:09:34]} Be7 {[%clk 00:51:11]} {[%emt
00:09:02]} 12. Nd3 {[%clk 00:43:04]} {[%emt 00:00:38]} Qc7 {[%clk 00:49:29]}
{[%emt 00:02:12]} 13. Rc1 {[%clk 00:39:39]} {[%emt 00:03:54]} Nb6 {[%clk
00:44:59]} {[%emt 00:05:00]} 14. Bh5 {[%clk 00:24:07]} {[%emt 00:16:02]} Nc4
{[%clk 00:42:58]} {[%emt 00:02:31]} 15. Be1 {[%clk 00:23:03]} {[%emt 00:01:34]}
Ng7 {[%clk 00:40:40]} {[%emt 00:02:48]} 16. Be2 {[%clk 00:23:25]} {[%emt
00:00:08]} h5 {[%clk 00:31:50]} {[%emt 00:09:21]} 17. Nbc5 {[%clk 00:19:10]}
{[%emt 00:04:44]} b6 {[%clk 00:19:45]} {[%emt 00:12:36]} 18. Na4 {[%clk
00:19:14]} {[%emt 00:00:26]} Nf5 {[%clk 00:18:55]} {[%emt 00:01:20]} 19. c3
{[%clk 00:10:41]} {[%emt 00:09:03]} Bg6 {[%clk 00:02:19]} {[%emt 00:17:06]} 20.
b3 {[%clk 00:10:13]} {[%emt 00:00:57]} Na3 {[%clk 00:02:31]} {[%emt 00:00:18]}
21. Bd2 {[%clk 00:05:54]} {[%emt 00:04:49]} Kf8 {[%clk 00:02:29]} {[%emt
00:00:32]} 22. Ra1 {[%clk 00:03:00]} {[%emt 00:03:25]} Qd8 {[%clk 00:01:49]}
{[%emt 00:01:11]} 23. Qc1 {[%clk 00:03:00]} {[%emt 00:00:30]} Nb5 {[%clk
00:02:12]} {[%emt 00:00:06]} 24. Nab2 {[%clk 00:02:37]} {[%emt 00:00:53]} Rc8
{[%clk 00:02:30]} {[%emt 00:00:12]} 25. a4 {[%clk 00:02:54]} {[%emt 00:00:13]}
Nbxd4 {[%clk 00:02:06]} {[%emt 00:00:54]} 26. cxd4 {[%clk 00:03:18]} {[%emt
00:00:05]} Nxd4 {[%clk 00:02:35]} {[%emt 00:00:02]} 27. Bd1 {[%clk 00:02:00]}
{[%emt 00:01:47]} c5 {[%clk 00:02:53]} {[%emt 00:00:13]} 28. Ne1 {[%clk
00:01:48]} {[%emt 00:00:42]} Nc6 {[%clk 00:00:51]} {[%emt 00:02:32]} 29. f4
{[%clk 00:02:02]} {[%emt 00:00:15]} g4 {[%clk 00:01:18]} {[%emt 00:00:04]} 30.
Bc2 {[%clk 00:01:51]} {[%emt 00:00:41]} Nd4 {[%clk 00:01:29]} {[%emt 00:00:19]}
31. Bd1 {[%clk 00:02:14]} {[%emt 00:00:07]} c4 {[%clk 00:01:24]} {[%emt
00:00:34]} 32. bxc4 {[%clk 00:01:34]} {[%emt 00:01:10]} dxc4 {[%clk 00:01:53]}
33. Qc3 {[%clk 00:00:32]} {[%emt 00:01:32]} Nf5 {[%clk 00:01:56]} {[%emt
00:00:28]} 34. Nc2 {[%clk 00:00:35]} {[%emt 00:00:28]} Bc5+ {[%clk 00:01:07]}
{[%emt 00:01:19]} 35. Rf2 {[%clk 00:00:33]} {[%emt 00:00:32]} Bxf2+ {[%clk
00:00:34]} {[%emt 00:01:03]} 36. Kxf2 {[%clk 00:00:54]} {[%emt 00:00:08]} Kg7
{[%clk 00:00:49]} {[%emt 00:00:15]} 37. Be2 {[%clk 00:00:50]} {[%emt 00:00:35]}
Qd5 {[%clk 00:00:48]} {[%emt 00:00:31]} 38. Rd1 {[%clk 00:00:38]} {[%emt
00:00:41]} a6 {[%clk 00:00:48]} {[%emt 00:00:30]} 39. Kg1 {[%clk 00:00:38]}
{[%emt 00:00:31]} b5 {[%clk 00:01:10]} {[%emt 00:00:07]} 40. Be1 {[%clk
00:00:32]} {[%emt 00:00:36]} Qe4 {[%clk 00:01:39]} 41. Bf1 {[%clk 00:00:38]}
{[%emt 00:00:24]} h4 {[%clk 00:01:19]} {[%emt 00:00:51]} 42. axb5 {[%clk
00:00:37]} {[%emt 00:00:30]} axb5 {[%clk 00:01:47]} {[%emt 00:00:01]} 43. Rd2
{[%clk 00:00:35]} {[%emt 00:00:33]} Rhd8 {[%clk 00:00:46]} {[%emt 00:01:31]} 44.
Re2 {[%clk 00:00:56]} {[%emt 00:00:08]} Qb7 {[%clk 00:00:40]} {[%emt 00:00:36]}
45. g3 {[%clk 00:00:33]} {[%emt 00:00:53]} Rd3 {[%clk 00:00:55]} {[%emt
00:00:16]} 46. Nxd3 {[%clk 00:00:32]} {[%emt 00:00:31]} cxd3 {[%clk 00:01:24]}
{[%emt 00:00:01]} 47. Qxd3 {[%clk 00:00:44]} {[%emt 00:00:18]} Nxg3 {[%clk
00:01:50]} {[%emt 00:00:04]} 48. Bg2 {[%clk 00:00:32]} {[%emt 00:00:42]} Bxd3
{[%clk 00:02:07]} {[%emt 00:00:12]} 49. Bxb7 {[%clk 00:00:51]} {[%emt
00:00:10]} Nxe2+ {[%clk 00:02:32]} {[%emt 00:00:05]} 0-1

[Event "FINAL CAMPEONATO ABSOLUTO DE AJEDREZ CHILE 2018"]
[Site "CENTRO CULTURAL LO PRADO, Chile"]
[Date "2018.02.25"]
[Round "3.3"]
[White "BARRIA ZUNIGA, Daniel"]
[Black "SALINAS HERRERA, Pablo Patrici"]
[Result "1/2-1/2"]
[TimeControl "90 minutos mas 30 segundos de incremento por movida"]
[WhiteTitle "IM"]
[BlackTitle "IM"]
[WhiteFideId "3400816"]
[WhiteElo "2395"]
[BlackElo "2453"]

1. d4 {[%clk 01:30:58]} {[%emt 03:15:58]} d5 {[%clk 01:30:55]} {[%emt
00:00:06]} 2. c4 {[%clk 01:31:23]} {[%emt 00:00:05]} c6 {[%clk 01:31:23]}
{[%emt 00:00:03]} 3. Nf3 {[%clk 01:31:47]} {[%emt 00:00:06]} Nf6 {[%clk
01:31:49]} {[%emt 00:00:04]} 4. Nc3 {[%clk 01:32:11]} {[%emt 00:00:06]} e6
{[%clk 01:32:16]} {[%emt 00:00:04]} 5. Bg5 {[%clk 01:32:28]} {[%emt 00:00:12]}
dxc4 {[%clk 01:32:40]} {[%emt 00:00:07]} 6. a4 {[%clk 01:31:17]} {[%emt
00:01:40]} Bb4 {[%clk 01:32:36]} {[%emt 00:00:35]} 7. e4 {[%clk 01:30:57]}
{[%emt 00:00:49]} Qa5 {[%clk 01:33:01]} {[%emt 00:00:05]} 8. Bd2 {[%clk
01:25:24]} {[%emt 00:06:01]} c5 {[%clk 01:33:20]} {[%emt 00:00:13]} 9. Bxc4
{[%clk 01:20:58]} {[%emt 00:04:56]} cxd4 {[%clk 01:33:33]} {[%emt 00:00:17]} 10.
Nxd4 {[%clk 01:20:45]} {[%emt 00:00:43]} O-O {[%clk 01:33:46]} {[%emt
00:00:17]} 11. Qe2 {[%clk 01:15:12]} {[%emt 00:06:01]} Rd8 {[%clk 01:25:17]}
{[%emt 00:09:00]} 12. Nb3 {[%clk 01:01:23]} {[%emt 00:14:18]} Qc7 {[%clk
01:25:28]} {[%emt 00:00:21]} 13. e5 {[%emt 00:19:27]} 1/2-1/2

[Event "FINAL CAMPEONATO ABSOLUTO DE AJEDREZ CHILE 2018"]
[Site "CENTRO CULTURAL LO PRADO, Chile"]
[Date "2018.02.25"]
[Round "3.4"]
[White "DIAZ VILLAGRAN, Robert"]
[Black "VERGARA JOFRE, Felipe Andres"]
[Result "1-0"]
[TimeControl "90 minutos mas 30 segundos de incremento por movida"]
[WhiteTitle "FM"]
[BlackTitle "FM"]
[WhiteElo "2317"]
[BlackElo "2270"]

1. e4 {[%clk 01:31:00]} {[%emt 03:08:53]} c5 {[%clk 01:25:34]} {[%emt
00:05:28]} 2. Nf3 {[%clk 01:31:16]} {[%emt 00:00:13]} Nc6 {[%clk 01:24:55]}
{[%emt 00:01:10]} 3. c3 {[%clk 01:31:36]} {[%emt 00:00:10]} Nf6 {[%clk
01:24:08]} {[%emt 00:01:17]} 4. e5 {[%clk 01:31:57]} {[%emt 00:00:09]} Nd5
{[%clk 01:24:34]} {[%emt 00:00:04]} 5. d4 {[%clk 01:32:23]} {[%emt 00:00:04]}
cxd4 {[%clk 01:24:30]} {[%emt 00:00:35]} 6. Bc4 {[%clk 01:32:42]} {[%emt
00:00:10]} Nb6 {[%clk 01:23:59]} {[%emt 00:01:01]} 7. Bb3 {[%clk 01:33:10]}
{[%emt 00:00:02]} d5 {[%clk 01:17:36]} {[%emt 00:06:53]} 8. exd6 {[%clk
01:33:29]} {[%emt 00:00:11]} e6 {[%clk 01:17:51]} {[%emt 00:00:15]} 9. cxd4
{[%clk 01:30:59]} {[%emt 00:03:00]} Bxd6 {[%clk 01:18:02]} {[%emt 00:00:19]} 10.
O-O {[%clk 01:28:56]} {[%emt 00:02:32]} O-O {[%clk 01:18:14]} {[%emt 00:00:19]}
11. Qe2 {[%clk 01:24:18]} {[%emt 00:05:08]} Nd5 {[%clk 01:09:53]} {[%emt
00:08:51]} 12. Nc3 {[%clk 01:23:27]} {[%emt 00:01:21]} b6 {[%clk 00:59:43]}
{[%emt 00:10:40]} 13. Qe4 {[%clk 01:01:41]} {[%emt 00:22:16]} f5 {[%clk
00:32:45]} {[%emt 00:27:28]} 14. Qe2 {[%clk 00:57:54]} {[%emt 00:04:16]} Nc7
{[%clk 00:32:17]} {[%emt 00:00:58]} 15. Rd1 {[%clk 00:44:52]} {[%emt 00:13:31]}
Na5 {[%clk 00:28:25]} {[%emt 00:04:24]} 16. Bc2 {[%clk 00:43:15]} {[%emt
00:02:07]} Ba6 {[%clk 00:26:56]} {[%emt 00:01:59]} 17. Bd3 {[%clk 00:43:17]}
{[%emt 00:00:27]} Bxd3 {[%clk 00:26:36]} {[%emt 00:00:50]} 18. Rxd3 {[%clk
00:43:35]} {[%emt 00:00:12]} Qf6 {[%clk 00:26:15]} {[%emt 00:00:51]} 19. Ne5
{[%clk 00:39:51]} {[%emt 00:04:14]} Rfd8 {[%clk 00:21:32]} {[%emt 00:05:14]} 20.
Bf4 {[%clk 00:37:10]} {[%emt 00:03:10]} Bb4 {[%clk 00:15:07]} {[%emt 00:06:55]}
21. Qh5 {[%clk 00:30:30]} {[%emt 00:07:09]} Be7 {[%clk 00:07:49]} {[%emt
00:07:48]} 22. Rh3 {[%clk 00:24:54]} {[%emt 00:06:05]} h6 {[%clk 00:08:13]}
{[%emt 00:00:07]} 23. Bxh6 {[%clk 00:23:32]} {[%emt 00:01:52]} gxh6 {[%clk
00:03:57]} {[%emt 00:04:47]} 24. Rg3+ {[%clk 00:23:49]} {[%emt 00:00:13]} Kf8
{[%clk 00:01:36]} {[%emt 00:02:51]} 25. Rg6 {[%clk 00:24:09]} {[%emt 00:00:09]}
Qh4 {[%clk 00:01:53]} {[%emt 00:00:13]} 26. Rg8+ {[%emt 00:00:15]} 1-0

[Event "FINAL CAMPEONATO ABSOLUTO DE AJEDREZ CHILE 2018"]
[Site "CENTRO CULTURAL LO PRADO, Chile"]
[Date "2018.02.25"]
[Round "3.5"]
[White "GARCIA CARDENAS, Pablo"]
[Black "AGUIRRE CONTRERAS, Cristian Ro"]
[Result "1/2-1/2"]
[TimeControl "90 minutos mas 30 segundos de incremento por movida"]
[WhiteTitle "IM"]
[BlackTitle "FM"]
[WhiteElo "2454"]
[BlackElo "2272"]

1. d4 {[%clk 01:30:57]} {[%emt 00:00:02]} Nf6 {[%clk 01:30:49]} {[%emt
00:00:11]} 2. c4 {[%clk 01:31:21]} {[%emt 00:00:05]} e6 {[%clk 01:31:04]}
{[%emt 00:00:16]} 3. Nc3 {[%clk 01:31:45]} {[%emt 00:00:06]} d5 {[%clk
01:31:10]} {[%emt 00:00:23]} 4. cxd5 {[%clk 01:32:07]} {[%emt 00:00:08]} exd5
{[%clk 01:31:29]} {[%emt 00:00:11]} 5. Bg5 {[%clk 01:32:29]} {[%emt 00:00:07]}
Be7 {[%clk 01:31:29]} {[%emt 00:00:31]} 6. e3 {[%clk 01:32:28]} {[%emt
00:00:31]} O-O {[%clk 01:30:37]} {[%emt 00:01:22]} 7. Bd3 {[%clk 01:31:19]}
{[%emt 00:01:39]} Nbd7 {[%clk 01:26:11]} {[%emt 00:04:57]} 8. Qc2 {[%clk
01:31:38]} {[%emt 00:00:10]} c6 {[%clk 01:25:55]} {[%emt 00:00:46]} 9. Nge2
{[%clk 01:31:44]} {[%emt 00:00:24]} Re8 {[%clk 01:26:04]} {[%emt 00:00:20]} 10.
O-O {[%clk 01:29:41]} {[%emt 00:02:33]} h6 {[%clk 01:22:01]} {[%emt 00:04:34]}
11. Bf4 {[%clk 01:26:11]} {[%emt 00:04:00]} Bf8 {[%clk 01:15:16]} {[%emt
00:07:15]} 12. h3 {[%clk 01:19:29]} {[%emt 00:07:11]} Qe7 {[%clk 01:11:22]}
{[%emt 00:04:23]} 13. Rab1 {[%clk 01:15:27]} {[%emt 00:04:33]} a5 {[%clk
01:01:20]} {[%emt 00:10:33]} 14. a3 {[%clk 01:15:28]} {[%emt 00:00:29]} Ne4
{[%clk 01:01:33]} {[%emt 00:00:16]} 15. Bxe4 {[%clk 01:03:36]} {[%emt
00:12:22]} dxe4 {[%clk 01:01:41]} {[%emt 00:00:22]} 16. Ng3 {[%clk 01:01:33]}
{[%emt 00:02:33]} g5 {[%clk 00:56:00]} {[%emt 00:06:12]} 17. Bc7 {[%clk
01:00:32]} {[%emt 00:01:31]} Nf6 {[%clk 00:51:59]} {[%emt 00:04:30]} 18. Be5
{[%clk 01:00:56]} {[%emt 00:00:06]} Nd7 {[%clk 00:51:31]} {[%emt 00:00:59]} 19.
Ncxe4 {[%clk 00:51:25]} {[%emt 00:10:01]} Nxe5 {[%clk 00:51:38]} {[%emt
00:00:22]} 20. dxe5 {[%clk 00:51:52]} {[%emt 00:00:02]} Qxe5 {[%clk 00:51:11]}
{[%emt 00:00:58]} 21. f4 {[%clk 00:50:56]} {[%emt 00:01:26]} gxf4 {[%clk
00:45:22]} {[%emt 00:06:19]} 22. exf4 {[%clk 00:42:26]} {[%emt 00:09:00]} Qd4+
{[%clk 00:37:29]} {[%emt 00:08:22]} 23. Kh1 {[%clk 00:37:53]} {[%emt 00:05:03]}
Bf5 {[%clk 00:32:31]} {[%emt 00:05:28]} 24. Nf6+ {[%clk 00:37:45]} {[%emt
00:00:38]} Qxf6 {[%clk 00:32:50]} {[%emt 00:00:11]} 25. Nxf5 {[%clk 00:38:09]}
{[%emt 00:00:05]} Rad8 {[%clk 00:32:50]} {[%emt 00:00:30]} 26. Rbd1 {[%clk
00:24:55]} {[%emt 00:13:44]} Rxd1 {[%clk 00:32:28]} {[%emt 00:00:53]} 27. Rxd1
{[%clk 00:25:11]} {[%emt 00:00:14]} Rd8 {[%clk 00:32:40]} {[%emt 00:00:18]} 28.
Rxd8 {[%clk 00:21:56]} {[%emt 00:03:44]} 1/2-1/2

[Event "FINAL CAMPEONATO ABSOLUTO DE AJEDREZ CHILE 2018"]
[Site "CENTRO CULTURAL LO PRADO, Chile"]
[Date "2018.02.25"]
[Round "3.6"]
[White "ABARCA GONZALEZ, Nicolas"]
[Black "FUENTES PARRA, Victor Ignacio"]
[Result "1-0"]
[TimeControl "90 minutos mas 30 segundos de incremento por movida"]
[WhiteElo "2388"]
[BlackElo "2148"]

1. e4 {[%clk 01:30:58]} {[%emt 00:00:02]} e6 {[%clk 01:30:52]} {[%emt
00:00:09]} 2. d4 {[%clk 01:31:24]} {[%emt 00:00:04]} d5 {[%clk 01:31:18]}
{[%emt 00:00:04]} 3. Nd2 {[%clk 01:31:51]} {[%emt 00:00:03]} Be7 {[%clk
01:29:41]} {[%emt 00:02:07]} 4. e5 {[%clk 01:29:33]} {[%emt 00:02:48]} c5
{[%clk 01:28:44]} {[%emt 00:01:27]} 5. Qg4 {[%clk 01:29:57]} {[%emt 00:00:05]}
Kf8 {[%clk 01:27:58]} {[%emt 00:01:17]} 6. dxc5 {[%clk 01:30:11]} {[%emt
00:00:17]} Nc6 {[%clk 01:27:16]} {[%emt 00:01:12]} 7. Ngf3 {[%clk 01:30:31]}
{[%emt 00:00:09]} h5 {[%clk 01:23:25]} {[%emt 00:04:21]} 8. Qf4 {[%clk
01:27:21]} {[%emt 00:03:40]} g5 {[%clk 01:15:34]} {[%emt 00:08:22]} 9. Qe3
{[%clk 01:27:47]} {[%emt 00:00:04]} Qc7 {[%clk 00:34:26]} {[%emt 00:41:38]} 10.
h3 {[%clk 01:19:51]} {[%emt 00:08:25]} Nh6 {[%clk 00:22:38]} {[%emt 00:12:18]}
11. g4 {[%clk 01:17:01]} {[%emt 00:03:20]} Nb4 {[%clk 00:14:06]} {[%emt
00:09:01]} 12. Bd3 {[%clk 01:17:03]} {[%emt 00:00:28]} Rg8 {[%clk 00:09:49]}
{[%emt 00:04:47]} 13. Rg1 {[%clk 01:15:55]} {[%emt 00:01:38]} hxg4 {[%clk
00:09:36]} {[%emt 00:00:43]} 14. hxg4 {[%clk 01:16:21]} {[%emt 00:00:04]} Bxc5
{[%clk 00:06:06]} {[%emt 00:04:01]} 15. Qe2 {[%clk 01:16:33]} {[%emt 00:00:18]}
Bd7 {[%clk 00:03:26]} {[%emt 00:03:10]} 16. Nb3 {[%clk 01:15:20]} {[%emt
00:01:42]} Be7 {[%clk 00:03:55]} {[%emt 00:00:01]} 17. Nbd4 {[%clk 01:13:40]}
{[%emt 00:02:10]} a6 {[%clk 00:03:06]} {[%emt 00:01:20]} 18. c3 {[%clk
01:12:21]} {[%emt 00:01:49]} Nc6 {[%clk 00:02:51]} {[%emt 00:00:45]} 19. Nxc6
{[%clk 01:05:28]} {[%emt 00:07:22]} bxc6 {[%clk 00:03:02]} {[%emt 00:00:20]} 20.
Bxa6 {[%clk 01:05:31]} {[%emt 00:00:27]} f6 {[%clk 00:01:40]} {[%emt 00:01:52]}
21. Bd3 {[%clk 00:52:48]} {[%emt 00:13:13]} Ra4 {[%clk 00:01:40]} {[%emt
00:00:30]} 22. exf6 {[%clk 00:50:01]} {[%emt 00:03:16]} Bxf6 {[%clk 00:01:48]}
{[%emt 00:00:22]} 23. Be3 {[%clk 00:50:26]} {[%emt 00:00:04]} e5 {[%clk
00:00:45]} {[%emt 00:01:34]} 24. Bc2 {[%clk 00:46:48]} {[%emt 00:04:08]} Rxg4
{[%clk 00:00:52]} {[%emt 00:00:23]} 25. Bc5+ {[%clk 00:46:45]} {[%emt
00:00:33]} Kf7 {[%clk 00:00:39]} {[%emt 00:00:44]} 26. O-O-O {[%clk 00:46:16]}
{[%emt 00:00:59]} Rxg1 {[%clk 00:00:34]} {[%emt 00:00:35]} 27. Rxg1 {[%clk
00:46:02]} {[%emt 00:00:44]} g4 {[%clk 00:00:41]} {[%emt 00:00:23]} 28. Nd2
{[%clk 00:45:40]} {[%emt 00:00:52]} e4 {[%clk 00:00:47]} {[%emt 00:00:25]} 29.
Rh1 {[%clk 00:41:14]} {[%emt 00:04:56]} Nf5 {[%clk 00:00:39]} {[%emt 00:00:38]}
30. Bb3 {[%clk 00:41:37]} {[%emt 00:00:07]} Qf4 {[%clk 00:00:32]} {[%emt
00:00:37]} 31. Qxe4 {[%clk 00:40:46]} {[%emt 00:01:21]} Bg5 {[%clk 00:00:31]}
{[%emt 00:00:32]} 32. Rh7+ {[%clk 00:37:56]} {[%emt 00:03:20]} Rg7 {[%clk
00:00:53]} {[%emt 00:00:07]} 33. Rxg7+ {[%clk 00:37:19]} {[%emt 00:01:07]} Nxg7
{[%clk 00:00:38]} {[%emt 00:00:45]} 34. Qxf4+ {[%clk 00:35:13]} {[%emt
00:02:37]} Bxf4 {[%clk 00:01:07]} 35. a4 {[%clk 00:35:38]} {[%emt 00:00:06]}
Ne6 {[%clk 00:01:19]} {[%emt 00:00:18]} 36. Bb6 {[%clk 00:35:24]} {[%emt
00:00:44]} Bd6 {[%clk 00:00:32]} {[%emt 00:01:17]} 37. a5 {[%clk 00:33:02]}
{[%emt 00:02:52]} g3 {[%clk 00:00:34]} {[%emt 00:00:28]} 38. fxg3 {[%clk
00:33:05]} {[%emt 00:00:26]} Bxg3 {[%clk 00:01:03]} {[%emt 00:00:02]} 39. Ba4
{[%clk 00:31:23]} {[%emt 00:02:13]} Nc7 {[%clk 00:01:04]} {[%emt 00:00:28]} 40.
Nb3 {[%clk 00:29:57]} {[%emt 00:01:56]} Bf4+ {[%clk 00:01:20]} {[%emt
00:00:14]} 41. Kb1 {[%clk 00:29:46]} {[%emt 00:00:41]} Na8 {[%clk 00:00:31]}
{[%emt 00:01:19]} 42. Bc5 {[%clk 00:28:36]} {[%emt 00:01:40]} Bc7 {[%clk
00:00:33]} {[%emt 00:00:29]} 43. Ka2 {[%clk 00:27:57]} {[%emt 00:01:08]} Bd8
{[%clk 00:00:34]} {[%emt 00:00:29]} 44. Ka3 {[%clk 00:22:52]} {[%emt 00:05:36]}
Ke8 {[%clk 00:01:03]} 45. a6 {[%clk 00:20:22]} {[%emt 00:02:59]} Bb6 {[%clk
00:00:32]} {[%emt 00:01:00]} 46. Kb4 {[%clk 00:19:32]} {[%emt 00:01:21]} Kd8
{[%clk 00:00:41]} {[%emt 00:00:21]} 47. Nd4 {[%clk 00:16:45]} {[%emt 00:03:16]}
Kc7 {[%clk 00:01:10]} {[%emt 00:00:01]} 48. b3 {[%clk 00:17:08]} {[%emt
00:00:08]} Be8 {[%clk 00:00:38]} {[%emt 00:01:02]} 49. Ne6+ {[%clk 00:17:27]}
{[%emt 00:00:10]} Kd7 {[%emt 00:00:57]} 1-0